bitfinex-derivatives/quotes_BNBF0:USTF0_20250908
["timestamp","ask_amount","ask_price","bid_price","bid_amount"]
[1757304981392,0.6146241,876.52,875.28,1.231]
[1757304981590,0.6146241,876.51,875.28,1.231]
[1757304981794,0.6146241,876.5,875.28,1.231]
[1757304981992,0.6146241,876.49,875.28,1.231]
[1757304982289,0.6146241,876.48,875.28,1.231]
[1757304982490,0.6146241,876.47,875.28,1.231]
[1757304982792,0.6146241,876.46,875.28,1.231]
[1757304982991,0.6146241,876.45,875.28,1.231]
[1757304983194,0.6146241,876.44,875.28,1.231]
[1757304983396,0.6146241,876.43,875.28,1.231]
[1757304983594,0.6146241,876.42,875.28,1.231]
[1757304983791,0.6146241,876.41,875.28,1.231]
[1757304983992,0.6146241,876.4,875.28,1.231]
[1757304984196,0.6146241,876.39,875.28,1.231]
[1757304984398,0.6146241,876.38,875.28,1.231]
[1757304984597,0.6146241,876.37,875.28,1.231]
[1757304984898,0.6146241,876.36,875.28,1.231]
[1757304985193,0.6146241,876.35,875.28,1.231]
[1757304985398,0.6146241,876.34,875.28,1.231]
[1757304985592,0.5531617,876.33,875.28,1.231]
[1757304985795,1.00937939,876.5,875.28,1.231]
[1757304987100,1.00937939,876.46,875.28,1.231]
[1757304987301,1.00937939,876.46,875.27,0.19834202]
[1757304988604,1.00937939,876.85,875.27,0.19834202]
[1757304989204,1.00937939,876.86,875.27,0.19834202]
[1757304990601,1.00937939,876.85,875.27,0.19834202]
[1757304990799,1.00937939,876.85,875.28,1.179]
[1757304992101,1.00937939,876.93,875.28,1.179]
[1757304992604,1.00937939,876.97,875.28,1.179]
[1757304994604,1.00937939,876.98,875.28,1.179]
[1757304995702,1.00937939,876.91,875.28,1.179]
[1757304995901,1.00937939,876.94,875.28,1.179]
[1757304997507,0.61464374,876.93,875.28,1.179]
[1757304997703,0.61464374,876.92,875.28,1.179]
[1757304997907,0.61464374,876.91,875.28,1.179]
[1757304998202,0.61464374,876.9,875.28,1.179]
[1757304998404,0.61464374,876.89,875.28,1.179]
[1757304998602,0.61464374,876.88,875.28,1.179]
[1757304998805,0.61464374,876.87,875.28,1.179]
[1757304999004,0.61464374,876.86,875.28,1.179]
[1757304999306,0.61464374,876.85,875.28,1.179]
[1757304999607,0.61464374,876.84,875.28,1.179]
[1757304999806,0.61464374,876.83,875.28,1.179]
[1757305000005,0.61464374,876.82,875.28,1.179]
[1757305000208,0.61464374,876.81,875.28,1.179]
[1757305000411,0.61464374,876.8,875.28,1.179]
[1757305000709,0.61464374,876.79,875.28,1.179]
[1757305001008,0.61464374,876.78,875.28,1.179]
[1757305001207,0.61464374,876.77,875.28,1.179]
[1757305001407,0.61464374,876.76,875.28,1.179]
[1757305001708,0.61464374,876.75,875.28,1.179]
[1757305001908,0.61464374,876.74,875.28,1.179]
[1757305002109,0.61464374,876.73,875.28,1.179]
[1757305002306,0.61464374,876.72,875.28,1.179]
[1757305002603,0.61464374,876.71,875.28,1.179]
[1757305002802,0.61464374,876.7,875.28,1.179]
[1757305003007,0.61464374,876.69,875.28,1.179]
[1757305003206,0.61464374,876.68,875.28,1.179]
[1757305003410,0.61464374,876.67,875.28,1.179]
[1757305003605,0.61464374,876.66,875.28,1.179]
[1757305003810,0.61464374,876.65,875.28,1.179]
[1757305004010,0.61464374,876.64,875.28,1.179]
[1757305004310,0.61464374,876.63,875.28,1.179]
[1757305004516,1.62402313,876.62,875.28,1.179]
[1757305004710,0.61464374,876.61,875.28,1.179]
[1757305004915,0.61464374,876.6,875.28,1.179]
[1757305005116,0.61464374,876.59,875.28,1.179]
[1757305005314,0.61464374,876.58,875.28,1.179]
[1757305005515,1.62402313,876.57,875.28,1.179]
[1757305005714,0.61464374,876.56,875.28,1.179]
[1757305005914,0.61464374,876.55,875.28,1.179]
[1757305006114,0.61464374,876.54,875.28,1.179]
[1757305006416,0.61464374,876.53,875.28,1.179]
[1757305006614,0.61464374,876.52,875.28,1.179]
[1757305006916,0.61464374,876.51,875.28,1.179]
[1757305007118,0.61464374,876.5,875.28,1.179]
[1757305007418,0.61464374,876.49,875.28,1.179]
[1757305007616,0.61464374,876.48,875.28,1.179]
[1757305007815,0.61464374,876.47,875.28,1.179]
[1757305008015,0.61464374,876.46,875.28,1.179]
[1757305008315,0.61464374,876.45,875.28,1.179]
[1757305008619,0.61464374,876.44,875.28,1.179]
[1757305008818,0.61464374,876.43,875.28,1.179]
[1757305009019,1.00937939,876.61,875.28,1.179]
[1757305009020,0.61464374,876.42,875.28,1.179]
[1757305009219,0.61464374,876.41,875.28,1.179]
[1757305009418,0.61464374,876.4,875.28,1.179]
[1757305009617,0.61464374,876.39,875.28,1.179]
[1757305009820,0.61464374,876.38,875.28,1.179]
[1757305010020,1.00937939,876.63,875.28,1.179]
[1757305010221,0.61468513,876.62,875.28,1.179]
[1757305010421,2.54158261,877.65,875.28,1.179]
[1757305010422,0.61468513,876.61,875.28,1.179]
[1757305010720,0.61468513,876.6,875.28,1.179]
[1757305010922,0.61468513,876.59,875.28,1.179]
[1757305011222,0.61468513,876.58,875.28,1.179]
[1757305011422,0.61468513,876.57,875.28,1.179]
[1757305011718,0.61468513,876.56,875.28,1.179]
[1757305011918,0.61468513,876.55,875.28,1.179]
[1757305012117,0.61468513,876.54,875.28,1.179]
[1757305012415,0.61468513,876.53,875.28,1.179]
[1757305012620,0.61468513,876.52,875.28,1.179]
[1757305012822,0.61468513,876.51,875.28,1.179]
[1757305013118,0.61468513,876.5,875.28,1.179]
[1757305013417,0.61468513,876.49,875.28,1.179]
[1757305013621,0.61468513,876.48,875.28,1.179]
[1757305013817,0.61468513,876.47,875.28,1.179]
[1757305014018,0.61468513,876.46,875.28,1.179]
[1757305014318,1.00937939,876.8,875.28,1.179]
[1757305014522,0.61477791,876.79,875.28,1.179]
[1757305014821,1.00937939,876.76,875.28,1.179]
[1757305015122,0.61477791,876.75,875.28,1.179]
[1757305015422,0.61477791,876.74,875.28,1.179]
[1757305015620,0.61477791,876.73,875.28,1.179]
[1757305015820,0.61477791,876.72,875.28,1.179]
[1757305016024,0.61477791,876.71,875.28,1.179]
[1757305016319,0.61477791,876.7,875.28,1.179]
[1757305016517,0.61477791,876.69,875.28,1.179]
[1757305016723,0.61477791,876.68,875.28,1.179]
[1757305017021,0.61477791,876.67,875.28,1.179]
[1757305017223,0.61477791,876.66,875.28,1.179]
[1757305017417,0.61477791,876.65,875.28,1.179]
[1757305017617,0.61477791,876.64,875.28,1.179]
[1757305017822,0.61477791,876.63,875.27,0.19834202]
[1757305018122,0.61477791,876.62,875.27,0.19834202]
[1757305018422,0.61477791,876.61,875.27,1.71651998]
[1757305018622,0.61477791,876.6,875.27,1.71651998]
[1757305018822,0.61477791,876.59,875.27,1.71651998]
[1757305019020,0.61477791,876.58,875.27,1.71651998]
[1757305019222,0.61477791,876.57,875.27,1.71651998]
[1757305019423,0.61477791,876.56,875.27,1.71651998]
[1757305019719,0.61477791,876.55,875.27,1.71651998]
[1757305020026,0.61477791,876.54,875.27,0.19834202]
[1757305020320,0.55330012,876.53,875.27,0.19834202]
[1757305020518,1.00937939,876.67,875.32,1.51817796]
[1757305020719,1.00937939,876.64,875.32,1.51817796]
[1757305020921,1.00937939,876.63,875.32,1.51817796]
[1757305021222,2.54158261,877.51,875.28,0.983]
[1757305021223,1.00937939,876.79,875.28,0.983]
[1757305021419,1.00937939,876.76,875.28,0.983]
[1757305021723,1.00937939,876.72,875.28,0.983]
[1757305021920,1.00937939,876.77,875.28,0.983]
[1757305022919,1.00937939,876.76,875.28,0.983]
[1757305023221,1.00937939,876.73,875.28,0.983]
[1757305024226,1.00937939,876.75,875.28,0.983]
[1757305025226,1.00937939,876.74,875.28,0.983]
[1757305026229,1.00937939,876.68,875.28,0.983]
[1757305027929,1.00937939,876.67,875.28,0.983]
[1757305028628,1.00937939,876.68,875.28,0.983]
[1757305031232,1.00937939,876.69,875.28,0.983]
[1757305031532,1.00937939,876.68,875.28,0.983]
[1757305031832,1.00937939,876.59,875.28,0.983]
[1757305032332,1.00937939,876.52,875.28,0.983]
[1757305032533,0.61395894,876.51,875.28,0.983]
[1757305032727,0.61395894,876.5,875.28,0.983]
[1757305032926,1.00937939,876.52,875.28,0.983]
[1757305032927,0.61395894,876.49,875.28,0.983]
[1757305033128,0.61395894,876.48,875.28,0.983]
[1757305033330,0.61395894,876.47,875.28,0.983]
[1757305033529,0.61395894,876.46,875.28,0.983]
[1757305033829,0.61395894,876.45,875.28,0.983]
[1757305034030,0.61395894,876.44,875.28,0.983]
[1757305034230,0.61395894,876.43,875.28,0.983]
[1757305034430,0.61395894,876.42,875.28,0.983]
[1757305034630,0.61395894,876.41,875.28,0.983]
[1757305034931,0.61395894,876.4,875.28,0.983]
[1757305035132,0.61395894,876.39,875.28,0.983]
[1757305035435,0.61395894,876.38,875.28,0.983]
[1757305035634,0.61395894,876.37,875.28,0.983]
[1757305035935,0.61395894,876.36,875.28,0.983]
[1757305036135,0.61395894,876.35,875.28,0.983]
[1757305036331,0.61395894,876.34,875.28,0.983]
[1757305036536,0.61395894,876.33,875.28,0.983]
[1757305036736,0.61395894,876.32,875.28,0.983]
[1757305036935,0.61395894,876.31,875.28,0.983]
[1757305037131,0.61395894,876.3,875.28,0.983]
[1757305037436,0.61395894,876.29,875.28,0.983]
[1757305037636,0.61395894,876.28,875.28,0.983]
[1757305037935,0.61395894,876.27,875.28,0.983]
[1757305038235,0.61395894,876.26,875.28,0.983]
[1757305038432,0.61395894,876.25,875.28,0.983]
[1757305038630,0.61395894,876.24,875.28,0.983]
[1757305038837,0.61395894,876.23,875.28,0.983]
[1757305039134,0.61395894,876.22,875.28,0.983]
[1757305039334,0.61395894,876.21,875.28,0.983]
[1757305039635,0.61395894,876.2,875.28,0.983]
[1757305039937,1.00937939,876.6,875.28,0.983]
[1757305039938,0.61395894,876.19,875.28,0.983]
[1757305040232,3.55821566,878.41,875.28,0.983]
[1757305040233,0.61395894,876.18,875.28,0.983]
[1757305040535,0.61395894,876.17,875.28,0.983]
[1757305040737,1.00937939,876.61,875.28,0.983]
[1757305040935,0.61319019,876.6,875.28,0.983]
[1757305041135,0.61319019,876.59,875.28,0.983]
[1757305041333,0.61319019,876.58,875.28,0.983]
[1757305041536,0.61319019,876.57,875.28,0.983]
[1757305041832,0.61319019,876.56,875.28,0.983]
[1757305042034,0.61319019,876.55,875.28,0.983]
[1757305042234,0.61319019,876.54,875.28,0.983]
[1757305042532,0.61319019,876.53,875.28,0.983]
[1757305042735,0.61319019,876.52,875.28,0.983]
[1757305042934,0.61319019,876.51,875.28,0.983]
[1757305043132,0.61319019,876.5,875.28,0.983]
[1757305043336,0.61319019,876.49,875.28,0.983]
[1757305043633,0.61319019,876.48,875.28,0.983]
[1757305043836,0.61319019,876.47,875.28,0.983]
[1757305044136,0.61319019,876.46,875.28,0.983]
[1757305044336,0.61319019,876.45,875.28,0.983]
[1757305044536,0.61319019,876.44,875.28,0.983]
[1757305044832,0.61319019,876.43,875.28,0.983]
[1757305045031,0.61319019,876.42,875.28,0.983]
[1757305045232,0.61319019,876.41,875.28,0.983]
[1757305045433,0.61319019,876.4,875.28,0.983]
[1757305045635,0.61319019,876.39,875.28,0.983]
[1757305045833,0.61319019,876.38,875.28,0.983]
[1757305046134,0.61319019,876.37,875.28,0.983]
[1757305046337,0.61319019,876.36,875.28,0.983]
[1757305046535,0.61319019,876.35,875.28,0.983]
[1757305046738,0.61319019,876.34,875.28,0.983]
[1757305046935,0.61319019,876.33,875.28,0.983]
[1757305047234,0.61319019,876.32,875.28,0.983]
[1757305047439,0.61319019,876.31,875.28,0.983]
[1757305047641,0.61319019,876.3,875.28,0.983]
[1757305047841,0.61319019,876.29,875.28,0.983]
[1757305048140,0.61319019,876.28,875.28,0.983]
[1757305048338,0.61319019,876.27,875.28,0.983]
[1757305048536,0.61319019,876.26,875.28,0.983]
[1757305048835,0.61319019,876.25,875.27,0.19834202]
[1757305049035,0.61319019,876.24,875.27,0.19834202]
[1757305049237,0.61319019,876.23,875.27,0.19834202]
[1757305049537,0.61319019,876.22,875.27,0.19834202]
[1757305049737,0.61319019,876.21,875.27,0.19834202]
[1757305049938,0.61319019,876.2,875.27,0.19834202]
[1757305050136,0.61319019,876.19,875.27,0.19834202]
[1757305050338,0.61319019,876.18,875.27,0.19834202]
[1757305050641,0.61319019,876.17,875.27,0.19834202]
[1757305050841,0.61319019,876.16,875.27,0.19834202]
[1757305051041,0.61319019,876.15,875.27,0.19834202]
[1757305051342,0.61319019,876.14,875.27,0.19834202]
[1757305051541,0.61319019,876.13,875.27,0.19834202]
[1757305051741,0.61319019,876.12,875.27,0.19834202]
[1757305052038,0.61319019,876.11,875.27,0.19834202]
[1757305052238,0.61319019,876.1,875.28,1.066]
[1757305052437,0.61319019,876.09,875.28,1.066]
[1757305052638,1.00937939,876.43,875.28,1.066]
[1757305052841,0.61240756,876.42,875.28,1.066]
[1757305053042,0.61240756,876.41,875.28,1.066]
[1757305053237,0.61240756,876.4,875.28,1.066]
[1757305053444,0.61240756,876.39,875.28,1.066]
[1757305053639,0.61240756,876.38,875.28,1.066]
[1757305053843,0.61240756,876.37,875.28,1.066]
[1757305054045,0.61240756,876.36,875.28,1.066]
[1757305054242,0.61240756,876.35,875.28,1.066]
[1757305054443,0.61240756,876.34,875.28,1.066]
[1757305054645,0.61240756,876.33,875.28,1.066]
[1757305054842,0.61240756,876.32,875.28,1.066]
[1757305055043,0.61240756,876.31,875.28,1.066]
[1757305055347,0.61240756,876.3,875.28,1.066]
[1757305055544,0.61240756,876.29,875.28,1.066]
[1757305055846,0.61240756,876.28,875.28,1.066]
[1757305056044,0.61240756,876.27,875.28,1.066]
[1757305056347,0.61240756,876.26,875.28,1.066]
[1757305056548,0.61240756,876.25,875.28,1.066]
[1757305056844,0.61240756,876.24,875.28,1.066]
[1757305057048,0.61240756,876.23,875.28,1.066]
[1757305057344,0.61240756,876.22,875.28,1.066]
[1757305057543,0.61240756,876.21,875.28,1.066]
[1757305057746,0.61240756,876.2,875.28,1.066]
[1757305057943,2.54158261,877.42,875.28,1.066]
[1757305057944,0.61240756,876.19,875.28,1.066]
[1757305058250,0.61240756,876.18,875.28,1.066]
[1757305058445,0.61240756,876.17,875.28,1.066]
[1757305058746,0.61240756,876.16,875.28,1.066]
[1757305058943,0.61240756,876.15,875.28,1.066]
[1757305059145,0.61240756,876.14,875.28,1.066]
[1757305059344,1.00937939,876.48,875.28,1.066]
[1757305059648,0.61230496,876.47,875.28,1.066]
[1757305059843,0.61230496,876.46,875.28,1.066]
[1757305060045,0.61230496,876.45,875.28,1.066]
[1757305060245,0.61230496,876.44,875.28,1.066]
[1757305060444,0.61230496,876.43,875.28,1.066]
[1757305060644,0.61230496,876.42,875.28,1.066]
[1757305060848,0.61230496,876.41,875.28,1.066]
[1757305061148,0.61230496,876.4,875.28,1.066]
[1757305061345,0.61230496,876.39,875.28,1.066]
[1757305061645,0.61230496,876.38,875.28,1.066]
[1757305061844,1.52215777,876.67,875.28,1.066]
[1757305061845,0.61230496,876.37,875.28,1.066]
[1757305062046,0.61230496,876.36,875.28,1.066]
[1757305062245,0.61230496,876.35,875.28,1.066]
[1757305062445,0.61230496,876.34,875.28,1.066]
[1757305062750,0.61230496,876.33,875.28,1.066]
[1757305062947,0.61230496,876.32,875.28,1.066]
[1757305063152,0.61230496,876.31,875.28,1.066]
[1757305063349,0.61230496,876.3,875.28,1.066]
[1757305063549,0.61230496,876.29,875.28,1.066]
[1757305063749,0.61230496,876.28,875.28,1.066]
[1757305064052,0.61230496,876.27,875.28,1.066]
[1757305064250,0.61230496,876.26,875.28,1.066]
[1757305064449,0.61230496,876.25,875.28,1.066]
[1757305064650,0.61230496,876.24,875.28,1.066]
[1757305064850,0.61230496,876.23,875.28,1.066]
[1757305065049,0.61230496,876.22,875.28,1.066]
[1757305065253,1.52215777,876.75,875.28,1.066]
[1757305065254,1.00937939,876.57,875.28,1.066]
[1757305065450,0.61252939,876.56,875.28,1.066]
[1757305065649,0.61252939,876.55,875.28,1.066]
[1757305065850,0.61252939,876.54,875.28,1.066]
[1757305066053,0.61252939,876.53,875.28,1.066]
[1757305066250,0.61252939,876.52,875.28,1.066]
[1757305066552,0.61252939,876.51,875.28,1.066]
[1757305066752,0.61252939,876.5,875.28,1.066]
[1757305066953,0.61252939,876.49,875.28,1.066]
[1757305067150,0.61252939,876.48,875.28,1.066]
[1757305067354,0.61252939,876.47,875.28,1.066]
[1757305067554,0.61252939,876.46,875.28,1.066]
[1757305067755,0.61252939,876.45,875.28,1.066]
[1757305067951,0.61252939,876.44,875.28,1.066]
[1757305068153,0.61252939,876.43,875.28,1.066]
[1757305068356,0.61252939,876.42,875.28,1.066]
[1757305068554,0.61252939,876.41,875.28,1.066]
[1757305068752,0.61252939,876.4,875.28,1.066]
[1757305068952,0.61252939,876.39,875.28,1.066]
[1757305069154,0.61252939,876.38,875.28,1.066]
[1757305069355,1.00937939,876.76,875.28,1.066]
[1757305069554,0.61271156,876.75,875.28,2.58417796]
[1757305069752,0.61271156,876.74,875.28,2.58417796]
[1757305070052,0.61271156,876.73,875.28,2.58417796]
[1757305070354,0.61271156,876.72,875.28,2.58417796]
[1757305070553,0.61271156,876.71,875.28,2.58417796]
[1757305070753,0.61271156,876.7,875.28,1.066]
[1757305070955,1.00937939,876.78,875.28,1.066]
[1757305070956,0.61271156,876.69,875.29,1.51817796]
[1757305071152,0.61271156,876.68,875.29,1.51817796]
[1757305071355,0.61271156,876.67,875.29,1.51817796]
[1757305071655,0.61271156,876.66,875.28,2.58417796]
[1757305071856,0.61271156,876.65,875.28,1.066]
[1757305072057,0.61271156,876.64,875.28,1.066]
[1757305072256,0.61271156,876.63,875.28,1.066]
[1757305072560,0.61271156,876.62,875.28,1.066]
[1757305072757,0.61271156,876.61,875.28,1.066]
[1757305072956,0.61271156,876.6,875.28,1.066]
[1757305073158,0.61271156,876.59,875.28,1.066]
[1757305073359,0.61271156,876.58,875.28,1.066]
[1757305073559,0.61271156,876.57,875.28,1.066]
[1757305073859,0.61271156,876.56,875.28,1.066]
[1757305074160,0.61271156,876.55,875.28,1.066]
[1757305074461,0.61271156,876.54,875.28,1.066]
[1757305074656,0.61271156,876.53,875.28,1.066]
[1757305074855,0.61271156,876.52,875.28,1.066]
[1757305075058,0.61271156,876.51,875.28,1.066]
[1757305075259,0.61271156,876.5,875.28,1.066]
[1757305075560,0.61271156,876.49,875.28,1.066]
[1757305075761,0.61271156,876.48,875.28,1.066]
[1757305076059,0.61271156,876.47,875.28,1.066]
[1757305076359,0.61271156,876.46,875.28,1.066]
[1757305076556,0.61271156,876.45,875.28,1.066]
[1757305076856,0.61271156,876.44,875.28,1.066]
[1757305077059,0.61271156,876.43,875.28,1.066]
[1757305077258,0.61271156,876.42,875.28,1.066]
[1757305077460,1.00937939,876.71,875.28,1.066]
[1757305077659,1.6222308,876.7,875.28,1.066]
[1757305077959,0.61285141,876.69,875.28,1.066]
[1757305078158,0.61285141,876.68,875.28,1.066]
[1757305078456,0.61285141,876.67,875.28,1.066]
[1757305078760,0.61285141,876.66,875.28,1.066]
[1757305078959,0.61285141,876.65,875.28,1.066]
[1757305079157,0.61285141,876.64,875.28,1.066]
[1757305079358,0.61285141,876.63,875.28,1.066]
[1757305079565,0.61285141,876.62,875.28,1.066]
[1757305079759,0.61285141,876.61,875.28,1.066]
[1757305080060,0.61285141,876.6,875.28,1.066]
[1757305080364,0.61285141,876.59,875.28,1.066]
[1757305080666,0.61285141,876.58,875.28,1.066]
[1757305080859,1.00937939,876.87,875.28,1.066]
[1757305080860,0.61285141,876.57,875.28,1.066]
[1757305081058,0.61285141,876.56,875.28,1.066]
[1757305081258,0.61285141,876.55,875.28,1.066]
[1757305081459,0.61285141,876.54,875.28,1.066]
[1757305081662,0.61285141,876.53,875.28,1.066]
[1757305081962,0.61285141,876.52,875.28,1.066]
[1757305082160,0.61285141,876.51,875.28,1.066]
[1757305082363,0.61285141,876.5,875.28,1.066]
[1757305082561,0.61285141,876.49,875.28,1.066]
[1757305082766,0.61285141,876.48,875.28,1.066]
[1757305082965,0.61285141,876.47,875.28,1.066]
[1757305083166,0.61285141,876.46,875.28,1.066]
[1757305083466,0.61285141,876.45,875.28,1.066]
[1757305083664,0.61285141,876.44,875.28,1.066]
[1757305083863,0.61285141,876.43,875.39,0.19825953]
[1757305084061,0.61285141,876.42,875.39,0.19825953]
[1757305084261,1.00937939,876.88,875.39,0.19825953]
[1757305084464,0.61275742,876.87,875.39,0.19825953]
[1757305084662,0.61275742,876.86,875.39,0.19825953]
[1757305084961,0.61275742,876.85,875.39,0.19825953]
[1757305085161,0.61275742,876.84,875.39,0.19825953]
[1757305085366,0.61275742,876.83,875.39,0.19825953]
[1757305085567,0.61275742,876.82,875.39,0.19825953]
[1757305085863,0.61275742,876.81,875.39,0.19825953]
[1757305086062,0.61275742,876.8,875.39,0.19825953]
[1757305086265,0.61275742,876.79,875.39,0.19825953]
[1757305086466,0.61275742,876.78,875.39,0.19825953]
[1757305086665,0.61275742,876.77,875.39,0.19825953]
[1757305086866,0.61275742,876.76,875.39,0.19825953]
[1757305087166,0.61275742,876.75,875.39,0.19825953]
[1757305087364,0.61275742,876.74,875.39,0.19825953]
[1757305087563,0.61275742,876.73,875.39,0.19825953]
[1757305087761,0.61275742,876.72,875.39,0.19825953]
[1757305087966,0.61275742,876.71,875.39,0.19825953]
[1757305088267,0.61275742,876.7,875.39,0.19825953]
[1757305088467,0.61275742,876.69,875.39,0.19825953]
[1757305088667,0.61275742,876.68,875.39,0.19825953]
[1757305088867,0.61275742,876.67,875.39,0.19825953]
[1757305089164,0.61275742,876.66,875.39,0.19825953]
[1757305089365,0.61275742,876.65,875.39,0.19825953]
[1757305089666,0.61275742,876.64,875.39,0.19825953]
[1757305089866,0.61275742,876.63,875.39,0.19825953]
[1757305090063,0.61275742,876.62,875.39,0.19825953]
[1757305090265,0.61275742,876.61,875.39,0.19825953]
[1757305090465,0.61275742,876.6,875.39,0.19825953]
[1757305090663,0.61275742,876.59,875.39,0.19825953]
[1757305090865,0.61275742,876.58,875.39,0.19825953]
[1757305091070,3.55821566,877.89,875.39,0.19825953]
[1757305091071,0.61275742,876.57,875.39,0.19825953]
[1757305091371,0.61275742,876.56,875.39,0.19825953]
[1757305091567,0.61275742,876.55,875.39,0.19825953]
[1757305091771,0.61275742,876.54,875.39,0.19825953]
[1757305092068,0.61275742,876.53,875.39,0.19825953]
[1757305092271,0.61275742,876.52,875.39,0.19825953]
[1757305092470,0.61275742,876.51,875.39,0.19825953]
[1757305092670,0.61275742,876.5,875.39,0.19825953]
[1757305092867,0.61275742,876.49,875.39,0.19825953]
[1757305093067,0.61275742,876.48,875.39,0.19825953]
[1757305093266,0.61275742,876.47,875.39,0.19825953]
[1757305093568,0.61275742,876.46,875.39,0.19825953]
[1757305093769,0.61275742,876.45,875.39,0.19825953]
[1757305094071,0.61275742,876.44,875.39,0.19825953]
[1757305094269,0.61275742,876.43,875.39,0.19825953]
[1757305094467,0.61275742,876.42,875.39,0.19825953]
[1757305094669,0.61275742,876.41,875.39,0.19825953]
[1757305094869,1.00937939,876.78,875.39,0.19825953]
[1757305095069,0.61238124,876.77,875.39,0.19825953]
[1757305095272,0.61238124,876.76,875.39,0.19825953]
[1757305095472,0.61238124,876.75,875.39,0.19825953]
[1757305095674,0.61238124,876.74,875.39,0.19825953]
[1757305095874,0.61238124,876.73,875.39,0.19825953]
[1757305096174,1.00937939,876.78,875.39,0.19825953]
[1757305096175,0.61238124,876.72,875.39,0.19825953]
[1757305096370,0.61238124,876.71,875.39,0.19825953]
[1757305096575,0.61238124,876.7,875.39,0.19825953]
[1757305096773,0.61238124,876.69,875.39,0.19825953]
[1757305096971,0.61238124,876.68,875.39,0.19825953]
[1757305097176,0.61238124,876.67,875.39,0.19825953]
[1757305097476,0.61238124,876.66,875.39,0.19825953]
[1757305097673,0.61238124,876.65,875.39,0.19825953]
[1757305097977,0.61238124,876.64,875.39,0.19825953]
[1757305098178,0.61238124,876.63,875.39,0.19825953]
[1757305098478,0.61238124,876.62,875.39,0.19825953]
[1757305098679,0.61238124,876.61,875.39,0.19825953]
[1757305098873,0.61238124,876.6,875.39,0.19825953]
[1757305099077,0.61238124,876.59,875.39,0.19825953]
[1757305099274,0.61238124,876.58,875.39,0.19825953]
[1757305099475,0.61238124,876.57,875.39,0.19825953]
[1757305099777,0.61238124,876.56,875.39,0.19825953]
[1757305099981,1.00937939,876.71,875.39,0.19825953]
[1757305099982,0.61238124,876.55,875.39,0.19825953]
[1757305100180,0.61238124,876.54,875.39,0.19825953]
[1757305100477,0.61238124,876.53,875.39,0.19825953]
[1757305100678,0.61238124,876.52,875.39,0.19825953]
[1757305100878,0.61238124,876.51,875.39,0.19825953]
[1757305101181,3.55821566,878.02,875.39,0.19825953]
[1757305101182,0.61238124,876.5,875.39,0.19825953]
[1757305101382,0.61238124,876.49,875.39,0.19825953]
[1757305101682,0.61238124,876.48,875.39,0.19825953]
[1757305101878,0.61238124,876.47,875.39,0.19825953]
[1757305102079,0.61238124,876.46,875.39,0.19825953]
[1757305102278,0.61238124,876.45,875.39,0.19825953]
[1757305102583,0.55114312,876.44,875.39,0.19825953]
[1757305102786,1.00937939,876.65,875.39,0.19825953]
[1757305103783,1.00937939,876.65,875.4,1.202]
[1757305104684,1.00937939,876.64,875.4,1.202]
[1757305104881,1.00937939,876.63,875.4,1.202]
[1757305105080,1.00937939,876.64,875.4,1.202]
[1757305106390,1.00937939,876.74,875.4,1.202]
[1757305106580,1.00937939,876.66,875.4,1.202]
[1757305107181,1.00937939,876.65,875.4,1.202]
[1757305109385,1.00937939,876.64,875.4,1.202]
[1757305110086,1.00937939,876.65,875.4,1.202]
[1757305110284,1.00937939,876.64,875.4,1.202]
[1757305111986,1.00937939,876.73,875.4,1.202]
[1757305112991,1.00937939,876.72,875.4,1.202]
[1757305113391,1.00937939,876.74,875.4,1.202]
[1757305114093,2.54158261,877.78,875.4,1.202]
[1757305114094,1.00937939,876.76,875.4,1.202]
[1757305114290,1.00937939,876.75,875.4,1.202]
[1757305114496,0.61237625,876.74,875.4,1.202]
[1757305114691,0.61237625,876.73,875.4,1.202]
[1757305114890,0.61237625,876.72,875.4,1.202]
[1757305115090,0.61237625,876.71,875.4,1.202]
[1757305115394,0.61237625,876.7,875.4,1.202]